fUSD/lending_fUSD_20260115
["ID","MTS","AMOUNT","RATE_DAILY","PERIOD"]
[402057379,1768500664674,-500.0,0.0003589,10]
[402057380,1768500664684,-500.0,0.0003589,10]
[402057381,1768500664694,-507.38,0.0003589,10]
[402057382,1768500664704,-500.0,0.0003589,10]
[402057383,1768500664713,-500.0,0.0003589,10]
[402057384,1768500664723,-500.0,0.0003589,10]
[402057385,1768500664733,-500.0,0.0003589,10]
[402057386,1768500664743,-687.03,0.0003589,10]
[402057387,1768500664754,-500.0,0.0003589,10]
[402057388,1768500664764,-500.0,0.0003589,10]
[402057389,1768500664775,-1129.68,0.0003589,10]
[402057390,1768500664786,-3824.26,0.0003589,10]
[402057391,1768500665079,-500.0,0.0003589,10]
[402057392,1768500665090,-500.0,0.0003589,10]
[402057393,1768500665100,-500.0,0.0003589,10]
[402057394,1768500665110,-500.0,0.0003589,10]
[402057395,1768500665120,-728.23,0.0003589,10]
[402057396,1768500665130,-2376.47,0.0003589,10]
[402057397,1768500665142,-500.0,0.0003589,10]
[402057398,1768500665151,-500.0,0.0003589,10]
[402057399,1768500665161,-778.22,0.0003589,10]
[402057400,1768500665170,-1155.22,0.0003589,10]
[402057401,1768500665182,-1750.77,0.0003589,10]
[402057402,1768500665193,-500.0,0.0003589,10]
[402057403,1768500665203,-500.0,0.0003589,10]
[402057404,1768500665213,-500.0,0.0003589,10]
[402057405,1768500665222,-992.45,0.0003589,10]
[402057406,1768500665231,-500.0,0.0003589,10]
[402057407,1768500665240,-634.6,0.0003589,10]
[402057408,1768500665249,-500.0,0.0003589,10]
[402057409,1768500665259,-500.0,0.0003589,10]
[402057410,1768500665268,-500.0,0.0003589,10]
[402057411,1768500665277,-500.0,0.0003589,10]
[402057412,1768500665286,-500.0,0.0003589,10]
[402057413,1768500665295,-500.0,0.0003589,10]
[402057414,1768500665304,-302.8104976,0.0003589,10]
[402057415,1768500665313,-500.0,0.0003589,10]
[402057416,1768500665323,-500.0,0.0003589,10]
[402057417,1768500665335,-546.45,0.0003589,10]
[402057418,1768500665344,-972.25,0.0003589,10]
[402057419,1768500665354,-500.0,0.0003589,10]
[402057420,1768500665363,-790.23,0.0003589,10]
[402057421,1768500665373,-697.58,0.0003589,10]
[402057422,1768500665383,-3531.28,0.0003589,10]
[402057423,1768500665392,-500.0,0.0003589,10]
[402057424,1768500665401,-500.0,0.0003589,10]
[402057425,1768500665410,-500.0,0.0003589,10]
[402057426,1768500665420,-500.0,0.0003589,10]
[402057427,1768500665429,-500.0,0.0003589,10]
[402057428,1768500665439,-500.0,0.0003589,10]
[402057429,1768500665448,-702.18,0.0003589,10]
[402057430,1768500665457,-500.0,0.0003589,10]
[402057431,1768500665466,-990.89,0.0003589,10]
[402057432,1768500665475,-500.0,0.0003589,10]
[402057433,1768500665484,-1203.52,0.0003589,10]
[402057434,1768500665494,-512.2,0.0003589,10]
[402057435,1768500665503,-887.28,0.0003589,10]
[402057436,1768500665512,-500.0,0.0003589,10]
[402057437,1768500665521,-500.0,0.0003589,10]
[402057438,1768500665530,-349.579573,0.0003589,10]
[402057439,1768500665540,-500.0,0.0003589,10]
[402057440,1768500665549,-1332.62,0.0003589,10]
[402057441,1768500665558,-500.0,0.0003589,10]
[402057442,1768500665571,-500.0,0.0003589,10]
[402057443,1768500665589,-591.97,0.0003589,10]
[402057444,1768500665598,-602.49238408,0.0003589,10]
[402057445,1768500665608,-500.0,0.0003589,10]
[402057446,1768500665617,-500.0,0.0003589,10]
[402057447,1768500665626,-500.0,0.0003589,10]
[402057448,1768500665636,-500.0,0.0003589,10]
[402057449,1768500665645,-500.0,0.0003589,10]
[402057450,1768500665654,-500.0,0.0003589,10]
[402057451,1768500665664,-500.0,0.0003589,10]
[402057452,1768500665675,-796.14,0.0003589,10]
[402057453,1768500665685,-989.21,0.0003589,10]
[402057454,1768500665694,-500.0,0.0003589,10]
[402057455,1768500665703,-369.68525408,0.0003589,10]
[402057456,1768500665713,-202.95128152,0.0003589,10]
[402057457,1768500665722,-506.72,0.0003589,10]
[402057458,1768500665731,-500.0,0.0003589,10]
[402057459,1768500665740,-500.0,0.0003589,10]
[402057460,1768500665749,-500.0,0.0003589,10]
[402057461,1768500665758,-1292.89,0.0003589,10]
[402057462,1768500665767,-646.89,0.0003589,10]
[402057463,1768500665777,-500.0,0.0003589,10]
[402057464,1768500665786,-500.0,0.0003589,10]
[402057465,1768500665795,-775.31,0.0003589,10]
[402057466,1768500665805,-500.0,0.0003589,10]
[402057467,1768500665814,-500.0,0.0003589,10]
[402057468,1768500665824,-500.0,0.0003589,10]
[402057469,1768500665833,-500.0,0.0003589,10]
[402057470,1768500665842,-701.33,0.0003589,10]
[402057471,1768500665852,-500.0,0.0003589,10]
[402057472,1768500665861,-500.0,0.0003589,10]
[402057473,1768500665871,-521.48,0.0003589,10]
[402057474,1768500665880,-1008.25,0.0003589,10]
[402057475,1768500665890,-500.0,0.0003589,10]
[402057476,1768500665899,-1423.77,0.0003589,10]
[402057477,1768500665908,-500.0,0.0003589,5]
[402057478,1768500665917,-624.39,0.0003589,10]
[402057479,1768500665928,-526.13668195,0.0003589,10]
[402057480,1768500665937,-513.96,0.0003589,10]
[402057481,1768500665947,-1293.86,0.0003589,10]
[402057482,1768500665957,-500.0,0.0003589,10]
[402057483,1768500665966,-1954.91,0.0003589,10]
[402057484,1768500665976,-500.0,0.0003589,10]
[402057485,1768500665986,-1350.1,0.0003589,10]
[402057486,1768500665995,-686.08,0.0003589,10]
[402057487,1768500666005,-500.0,0.0003589,10]
[402057488,1768500666014,-1467.71,0.0003589,10]
[402057489,1768500666024,-596.21,0.0003589,10]
[402057490,1768500666033,-500.0,0.0003589,5]
[402057491,1768500666043,-500.0,0.0003589,10]
[402057492,1768500666052,-500.0,0.0003589,10]
[402057493,1768500666061,-500.0,0.0003589,10]
[402057494,1768500666071,-500.0,0.0003589,10]
[402057495,1768500666081,-331.15455948,0.0003589,10]
[402057496,1768500666090,-500.0,0.0003589,10]
[402057497,1768500666100,-500.0,0.0003589,10]
[402057498,1768500666110,-636.75718801,0.0003589,10]
[402057499,1768500666120,-500.0,0.0003589,10]
[402057500,1768500666130,-558.54,0.0003589,10]
[402057501,1768500666143,-500.0,0.0003589,10]
[402057502,1768500666153,-566.57,0.0003589,10]
[402057503,1768500666163,-500.0,0.0003589,10]
[402057504,1768500666173,-500.0,0.0003589,10]
[402057505,1768500666183,-500.0,0.0003589,10]
[402057506,1768500666192,-500.0,0.0003589,10]
[402057507,1768500666202,-253.12823434,0.0003589,10]
[402057508,1768500666212,-500.0,0.0003589,10]
[402057509,1768500666222,-500.0,0.0003589,10]
[402057510,1768500666232,-500.0,0.0003589,10]
[402057511,1768500666242,-500.0,0.0003589,10]
[402057512,1768500666251,-500.0,0.0003589,10]
[402057513,1768500666261,-500.0,0.0003589,10]
[402057514,1768500666271,-500.0,0.0003589,10]
[402057515,1768500666281,-500.0,0.0003589,10]
[402057516,1768500666290,-500.0,0.0003589,10]
[402057517,1768500666300,-500.0,0.0003589,10]
[402057518,1768500666309,-1305.94,0.0003589,10]
[402057519,1768500666319,-500.0,0.0003589,10]
[402057520,1768500666329,-580.19421349,0.0003589,10]
[402057521,1768500666339,-500.0,0.0003589,10]
[402057522,1768500666349,-1167.39,0.0003589,10]
[402057523,1768500666358,-548.40231802,0.0003589,10]
[402057524,1768500666369,-500.0,0.0003589,10]
[402057525,1768500666378,-1147.77,0.0003589,10]
[402057526,1768500666388,-500.0,0.0003589,10]
[402057527,1768500666397,-500.0,0.0003589,10]
[402057528,1768500666406,-500.0,0.0003589,10]
[402057529,1768500666416,-426.88235585,0.0003589,10]
[402057530,1768500666426,-500.0,0.0003589,10]
[402057531,1768500666435,-688.88,0.0003589,10]
[402057532,1768500666445,-500.0,0.0003589,10]
[402057533,1768500666455,-500.0,0.0003589,10]
[402057534,1768500666464,-603.13769465,0.0003589,10]
[402057535,1768500666474,-500.0,0.0003589,10]
[402057536,1768500666483,-400.0,0.0003589,10]
[402057537,1768500666492,-555.10926777,0.0003589,10]
[402057538,1768500666502,-1649.18,0.0003589,10]
[402057539,1768500666512,-578.28,0.0003589,10]
[402057540,1768500666521,-876.73,0.0003589,10]
[402057541,1768500666531,-500.0,0.0003589,10]
[402057542,1768500666541,-500.0,0.0003589,10]
[402057543,1768500666550,-500.0,0.0003589,10]
[402057544,1768500666559,-500.0,0.0003589,10]
[402057545,1768500666568,-500.0,0.0003589,10]
[402057546,1768500666577,-500.0,0.0003589,10]
[402057547,1768500666587,-768.69,0.0003589,10]
[402057548,1768500666597,-500.0,0.0003589,3]
[402057549,1768500666607,-500.0,0.0003589,10]
[402057550,1768500666616,-518.58,0.0003589,10]
[402057551,1768500666626,-950.53,0.0003589,10]
[402057552,1768500666636,-595.11,0.0003589,10]
[402057553,1768500666646,-527.1,0.0003589,10]
[402057554,1768500666655,-590.32,0.0003589,10]
[402057555,1768500666665,-500.0,0.0003589,10]
[402057556,1768500666675,-500.0,0.0003589,10]
[402057557,1768500666684,-712.94,0.0003589,10]
[402057558,1768500666694,-494.82119801,0.0003589,10]
[402057559,1768500666704,-500.0,0.0003589,5]
[402057560,1768500666714,-500.0,0.0003589,10]
[402057561,1768500666723,-500.0,0.0003589,10]
[402057562,1768500666732,-500.0,0.0003589,10]
[402057563,1768500666742,-500.0,0.0003589,10]
[402057564,1768500666751,-590.07183992,0.0003589,10]
[402057565,1768500666760,-994.33,0.0003589,10]
[402057566,1768500666770,-500.0,0.0003589,10]
[402057567,1768500666779,-500.0,0.0003589,10]
[402057568,1768500666789,-500.0,0.0003589,10]
[402057569,1768500666799,-500.0,0.0003589,10]
[402057570,1768500666809,-500.0,0.0003589,10]
[402057571,1768500666819,-500.0,0.0003589,10]
[402057572,1768500666828,-752.23,0.0003589,10]
[402057573,1768500666838,-500.0,0.0003589,10]
[402057574,1768500666847,-1306.34,0.0003589,10]
[402057575,1768500666857,-500.0,0.0003589,10]
[402057576,1768500666867,-500.0,0.0003589,10]
[402057577,1768500666877,-717.55,0.0003589,10]
[402057578,1768500666886,-1111.34,0.0003589,10]
[402057579,1768500666896,-707.78,0.0003589,10]
[402057580,1768500666906,-656.63,0.0003589,10]
[402057581,1768500666916,-500.0,0.0003589,10]
[402057582,1768500666927,-500.0,0.0003589,10]
[402057583,1768500666937,-500.0,0.0003589,10]
[402057584,1768500666946,-500.0,0.0003589,10]
[402057585,1768500666957,-500.0,0.0003589,10]
[402057586,1768500666966,-500.0,0.0003589,10]
[402057587,1768500666976,-1460.91,0.0003589,10]
[402057588,1768500666985,-500.0,0.0003589,10]
[402057589,1768500666996,-500.0,0.0003589,10]
[402057590,1768500667005,-500.0,0.0003589,10]
[402057591,1768500667015,-572.26,0.0003589,10]
[402057592,1768500667024,-630.41,0.0003589,10]
[402057593,1768500667034,-500.0,0.0003589,10]
[402057594,1768500667043,-500.0,0.0003589,10]
[402057595,1768500667052,-3866.71,0.0003589,10]
[402057596,1768500667062,-500.0,0.0003589,10]
[402057597,1768500667072,-500.0,0.0003589,10]
[402057598,1768500667081,-500.0,0.0003589,10]
[402057599,1768500667090,-500.0,0.0003589,10]
[402057600,1768500667100,-500.0,0.0003589,10]
[402057601,1768500667110,-584.18,0.0003589,10]
[402057602,1768500667120,-500.0,0.0003589,10]
[402057603,1768500667129,-1336.21,0.0003589,10]
[402057604,1768500667140,-500.0,0.0003589,10]
[402057605,1768500667150,-500.0,0.0003589,10]
[402057606,1768500667159,-500.0,0.0003589,10]
[402057607,1768500667168,-500.0,0.0003589,10]
[402057608,1768500667179,-500.0,0.0003589,10]
[402057609,1768500667189,-967.76,0.0003589,10]
[402057610,1768500667199,-261.56943571,0.0003589,10]
[402057611,1768500667209,-500.0,0.0003589,10]
[402057612,1768500667219,-500.0,0.0003589,10]
[402057613,1768500667229,-500.0,0.0003589,10]
[402057614,1768500667238,-500.0,0.0003589,10]
[402057615,1768500667248,-3202.82,0.0003589,10]
[402057616,1768500667257,-500.0,0.0003589,10]
[402057617,1768500667267,-500.0,0.0003589,10]
[402057618,1768500667277,-500.0,0.0003589,10]
[402057619,1768500667287,-749.4,0.0003589,10]
[402057620,1768500667298,-810.72,0.0003589,10]
[402057621,1768500667310,-500.0,0.0003589,10]
[402057622,1768500667321,-500.0,0.0003589,10]
[402057623,1768500667332,-500.0,0.0003589,10]
[402057624,1768500667344,-500.0,0.0003589,10]
[402057625,1768500667357,-500.0,0.0003589,10]
[402057626,1768500667369,-1365.25,0.0003589,10]
[402057627,1768500667380,-655.28,0.0003589,10]
[402057628,1768500667464,-500.0,0.0003589,10]
[402057629,1768500667476,-1165.77,0.0003589,10]
[402057630,1768500667485,-634.0,0.0003589,10]
[402057631,1768500667495,-513.00655149,0.0003589,10]
[402057632,1768500667504,-500.0,0.0003589,10]
[402057633,1768500667513,-1100.0,0.000359,13]
[402057634,1768500667522,-435.82251147,0.00036056,7]
[402057635,1768500667531,-500.0,0.00036164,10]
[402057636,1768500667540,-500.0,0.00036164,10]
[402057637,1768500667550,-616.72,0.00036164,10]
[402057638,1768500667559,-787.05,0.00036164,10]
[402057639,1768500667569,-500.0,0.00036164,10]
[402057640,1768500667578,-500.0,0.00036164,10]
[402057641,1768500667587,-701.21,0.00036164,10]
[402057642,1768500667597,-1046.98,0.00036164,10]
[402057643,1768500667607,-548.13057869,0.00036164,10]
[402057644,1768500667616,-500.0,0.00036164,10]
[402057645,1768500667625,-723.56,0.00036164,10]
[402057646,1768500667634,-500.0,0.00036164,10]
[402057647,1768500667644,-500.0,0.00036164,10]
[402057648,1768500667654,-500.0,0.00036164,10]
[402057649,1768500667663,-500.0,0.00036164,10]
[402057650,1768500667672,-500.0,0.00036164,10]
[402057651,1768500667682,-500.0,0.00036164,10]
[402057652,1768500667691,-500.0,0.00036164,10]
[402057653,1768500667701,-500.0,0.00036164,10]
[402057654,1768500667710,-500.0,0.00036164,10]
[402057655,1768500667719,-500.0,0.00036164,10]
[402057656,1768500667728,-500.0,0.00036164,10]
[402057657,1768500667737,-774.5,0.00036164,10]
[402057658,1768500667747,-559.13,0.00036164,10]
[402057659,1768500667756,-508.34,0.00036164,10]
[402057660,1768500667765,-639.53,0.00036164,10]
[402057661,1768500667774,-845.26,0.00036164,10]
[402057662,1768500667783,-996.04,0.00036164,10]
[402057663,1768500667792,-449.82736903,0.00036164,10]
[402057664,1768500667802,-500.0,0.00036164,10]
[402057665,1768500667811,-500.0,0.00036164,10]
[402057666,1768500667820,-500.0,0.00036164,10]
[402057667,1768500667829,-500.0,0.00036164,10]
[402057668,1768500667838,-500.0,0.00036164,10]
[402057669,1768500667847,-985.47,0.00036164,10]
[402057670,1768500667856,-500.0,0.00036164,10]
[402057671,1768500667865,-500.0,0.00036164,10]
[402057672,1768500667874,-500.0,0.00036164,10]
[402057673,1768500667883,-169.86693005,0.00036164,10]
[402057674,1768500667892,-500.0,0.00036164,10]
[402057675,1768500667901,-519.15018497,0.00036164,10]
[402057676,1768500667910,-987.21,0.00036164,10]
[402057677,1768500667919,-500.0,0.00036164,10]
[402057678,1768500667928,-500.0,0.00036164,10]
[402057679,1768500667937,-645.47,0.00036164,10]
[402057680,1768500667946,-500.0,0.00036164,10]
[402057681,1768500667955,-649.08977824,0.00036164,10]
[402057682,1768500667965,-873.78,0.00036164,10]
[402057683,1768500667974,-580.42,0.00036164,10]
[402057684,1768500667983,-500.0,0.00036164,10]
[402057685,1768500667992,-844.87,0.00036164,10]
[402057686,1768500668001,-900.95,0.00036164,10]
[402057687,1768500668010,-599.48,0.00036164,10]
[402057688,1768500668019,-929.39,0.00036164,10]
[402057689,1768500668028,-500.0,0.00036164,10]
[402057690,1768500668037,-500.0,0.00036164,10]
[402057691,1768500668046,-151.0,0.00036164,31]
[402057692,1768500668056,-500.0,0.00036164,10]
[402057693,1768500668065,-500.0,0.00036164,10]
[402057694,1768500668075,-500.0,0.00036164,10]
[402057695,1768500668084,-500.0,0.00036164,10]
[402057696,1768500668093,-500.0,0.00036164,10]
[402057697,1768500668103,-500.0,0.00036164,10]
[402057698,1768500668112,-500.0,0.00036164,10]
[402057699,1768500668124,-736.73,0.00036164,10]
[402057700,1768500668139,-500.0,0.00036164,10]
[402057701,1768500668147,-500.0,0.00036164,10]
[402057702,1768500668157,-649.71,0.00036164,10]
[402057703,1768500668166,-527.56,0.00036164,10]
[402057704,1768500668177,-500.0,0.00036164,10]
[402057705,1768500668187,-500.0,0.00036164,10]
[402057706,1768500668196,-650.66,0.00036164,10]
[402057707,1768500668206,-500.0,0.00036164,10]
[402057708,1768500668216,-508.55,0.00036164,10]
[402057709,1768500668225,-500.0,0.00036164,10]
[402057710,1768500668235,-500.0,0.00036164,10]
[402057711,1768500668245,-500.0,0.00036164,10]
[402057712,1768500668254,-500.0,0.00036164,10]
[402057713,1768500668264,-500.0,0.00036164,10]
[402057714,1768500668274,-780.59,0.00036164,10]
[402057715,1768500668283,-151.0,0.00036164,31]
[402057716,1768500668293,-500.85,0.00036164,10]
[402057717,1768500668303,-500.0,0.00036164,10]
[402057718,1768500668312,-1220.78,0.00036164,10]
[402057719,1768500668322,-500.0,0.00036164,10]
[402057720,1768500668332,-1032.66,0.00036164,10]
[402057721,1768500668341,-151.0,0.00036164,31]
[402057722,1768500668351,-543.0,0.00036164,10]
[402057723,1768500668360,-500.0,0.00036164,10]
[402057724,1768500668370,-500.0,0.00036164,10]
[402057725,1768500668379,-500.0,0.00036164,10]
[402057726,1768500668389,-500.0,0.00036164,10]
[402057727,1768500668399,-500.0,0.00036164,10]
[402057728,1768500668409,-1008.51,0.00036164,10]
[402057729,1768500668419,-500.0,0.00036164,10]
[402057730,1768500668431,-500.0,0.00036164,10]
[402057731,1768500668441,-874.81,0.00036164,10]
[402057732,1768500668451,-819.94,0.00036164,10]
[402057733,1768500668460,-500.0,0.00036164,10]
[402057734,1768500668470,-570.72,0.00036164,10]
[402057735,1768500668480,-500.0,0.00036164,10]
[402057736,1768500668489,-500.0,0.00036164,10]
[402057737,1768500668499,-714.82,0.00036164,10]
[402057738,1768500668508,-500.0,0.00036164,10]
[402057739,1768500668517,-793.06,0.00036164,10]
[402057740,1768500668527,-731.97,0.00036164,10]
[402057741,1768500668536,-500.0,0.00036164,10]
[402057742,1768500668546,-500.0,0.00036164,10]
[402057743,1768500668555,-500.0,0.00036164,10]
[402057744,1768500668564,-617.26,0.00036164,10]
[402057745,1768500668574,-500.0,0.00036164,10]
[402057746,1768500668584,-500.0,0.00036164,10]
[402057747,1768500668593,-500.0,0.00036164,10]
[402057748,1768500668603,-500.0,0.00036164,10]
[402057749,1768500668613,-500.0,0.00036164,10]
[402057750,1768500668622,-577.49,0.00036164,10]
[402057751,1768500668632,-545.95,0.00036164,10]
[402057752,1768500668641,-720.0,0.00036164,10]
[402057753,1768500668650,-609.57,0.00036164,10]
[402057754,1768500668660,-500.0,0.00036164,10]
[402057755,1768500668669,-500.0,0.00036164,10]
[402057756,1768500668681,-500.0,0.00036164,10]
[402057757,1768500668690,-500.0,0.00036164,10]
[402057758,1768500668699,-500.0,0.00036164,10]
[402057759,1768500668709,-500.0,0.00036164,10]
[402057760,1768500668718,-500.0,0.00036164,10]
[402057761,1768500668728,-500.0,0.00036164,10]
[402057762,1768500668739,-798.44,0.00036164,10]
[402057763,1768500668748,-521.73,0.00036164,10]
[402057764,1768500668758,-517.34,0.00036164,10]
[402057765,1768500668769,-647.37,0.00036164,10]
[402057766,1768500668779,-530.44358113,0.00036164,10]
[402057767,1768500668788,-500.0,0.00036164,10]
[402057768,1768500668797,-500.0,0.00036164,10]
[402057769,1768500668806,-500.0,0.00036164,10]
[402057770,1768500668815,-500.0,0.00036164,10]
[402057771,1768500668824,-500.0,0.00036164,10]
[402057772,1768500668833,-864.47,0.00036164,10]
[402057773,1768500668842,-547.13,0.00036164,10]
[402057774,1768500668851,-500.0,0.00036164,10]
[402057775,1768500668860,-1261.82,0.00036164,10]
[402057776,1768500668869,-673.63,0.00036164,10]
[402057777,1768500668878,-500.0,0.00036164,10]
[402057778,1768500668887,-1185.22,0.00036164,10]
[402057779,1768500668897,-500.0,0.00036164,10]
[402057780,1768500668906,-500.0,0.00036164,10]
[402057781,1768500668915,-500.0,0.00036164,10]
[402057782,1768500668925,-740.62,0.00036164,10]
[402057783,1768500668937,-500.0,0.00036164,10]
[402057784,1768500668947,-590.42,0.00036164,10]
[402057785,1768500668956,-399.73080487,0.00036164,10]
[402057786,1768500668965,-500.0,0.00036164,10]
[402057787,1768500668975,-951.38,0.00036164,10]
[402057788,1768500668984,-500.0,0.00036164,10]
[402057789,1768500668993,-500.0,0.00036164,10]
[402057790,1768500669003,-500.0,0.00036164,10]
[402057791,1768500669013,-500.0,0.00036164,10]
[402057792,1768500669023,-500.0,0.00036164,10]
[402057793,1768500669032,-500.0,0.00036164,10]
[402057794,1768500669042,-500.0,0.00036164,10]
[402057795,1768500669052,-796.46,0.00036164,10]
[402057796,1768500669062,-500.0,0.00036164,10]
[402057797,1768500669071,-500.0,0.00036164,10]
[402057798,1768500669080,-500.0,0.00036164,10]
[402057799,1768500669089,-815.98,0.00036164,10]
[402057800,1768500669099,-574.75,0.00036164,10]
[402057801,1768500669107,-891.74,0.00036164,10]
[402057802,1768500669117,-677.08,0.00036164,10]
[402057803,1768500669127,-767.78,0.00036164,10]
[402057804,1768500669140,-1070.3,0.00036164,10]
[402057805,1768500669149,-500.0,0.00036164,10]
[402057806,1768500669159,-695.01,0.00036164,10]
[402057807,1768500669168,-641.04,0.00036164,2]
[402057808,1768500669180,-958.55,0.00036164,10]
[402057809,1768500669190,-500.0,0.00036164,10]
[402057810,1768500669199,-500.0,0.00036164,10]
[402057811,1768500669212,-500.0,0.00036164,10]
[402057812,1768500669222,-516.59,0.00036164,10]
[402057813,1768500669231,-500.0,0.00036164,10]
[402057814,1768500669241,-500.0,0.00036164,10]
[402057815,1768500669250,-500.0,0.00036164,10]
[402057816,1768500669260,-500.0,0.00036164,10]
[402057817,1768500669269,-500.0,0.00036164,10]
[402057818,1768500669279,-500.0,0.00036164,10]
[402057819,1768500669288,-500.0,0.00036164,10]
[402057820,1768500669297,-500.0,0.00036164,10]
[402057821,1768500669307,-500.0,0.00036164,10]
[402057822,1768500669317,-770.33,0.00036164,10]
[402057823,1768500669327,-500.0,0.00036164,10]
[402057824,1768500669336,-578.34,0.00036164,10]
[402057825,1768500669345,-500.0,0.00036164,10]
[402057826,1768500669355,-500.0,0.00036164,10]
[402057827,1768500669364,-1053.42,0.00036164,10]
[402057828,1768500669373,-695.19,0.00036164,10]
[402057829,1768500669383,-1000.0,0.00036164,10]
[402057830,1768500669393,-1537.40879738,0.00036164,10]
[402057831,1768500669403,-896.95,0.00036164,10]
[402057832,1768500669412,-940.15,0.00036164,10]
[402057833,1768500669422,-557.27091359,0.00036164,10]
[402057834,1768500669431,-500.0,0.00036164,10]
[402057835,1768500669441,-500.0,0.00036164,10]
[402057836,1768500669450,-500.0,0.00036164,10]
[402057837,1768500669460,-500.0,0.00036164,10]
[402057838,1768500669469,-698.35,0.00036164,10]
[402057839,1768500669478,-500.0,0.00036164,10]
[402057840,1768500669488,-500.0,0.00036164,10]
[402057841,1768500669497,-500.0,0.00036164,10]
[402057842,1768500669506,-560.96,0.00036164,10]
[402057843,1768500669515,-1075.46,0.00036164,10]
[402057844,1768500669524,-935.85,0.00036164,10]
[402057845,1768500669533,-549.47,0.00036164,10]
[402057846,1768500669542,-969.45,0.00036164,10]
[402057847,1768500669551,-970.19,0.00036164,10]
[402057848,1768500669560,-500.0,0.00036164,10]
[402057849,1768500669569,-500.0,0.00036164,10]
[402057850,1768500669578,-665.36,0.00036164,10]
[402057851,1768500669587,-735.39,0.00036164,10]
[402057852,1768500669596,-500.0,0.00036164,10]
[402057853,1768500669604,-1563.42,0.00036164,10]
[402057854,1768500669612,-522.16848881,0.00036164,10]
[402057855,1768500669620,-536.34,0.00036164,10]
[402057856,1768500669630,-500.0,0.00036164,10]
[402057857,1768500669639,-500.0,0.00036164,10]
[402057858,1768500669648,-500.0,0.00036164,10]
[402057859,1768500669657,-524.27,0.00036164,10]
[402057860,1768500669666,-500.0,0.00036164,10]
[402057861,1768500669675,-706.73,0.00036164,10]
[402057862,1768500669685,-500.0,0.00036164,10]
[402057863,1768500669694,-789.28,0.00036164,10]
[402057864,1768500669704,-500.0,0.00036164,10]
[402057865,1768500669713,-1316.42,0.00036164,10]
[402057866,1768500669722,-500.0,0.00036164,10]
[402057867,1768500669732,-894.05,0.00036164,10]
[402057868,1768500669741,-500.0,0.00036164,10]
[402057869,1768500669751,-500.0,0.00036164,10]
[402057870,1768500669760,-500.0,0.00036164,10]
[402057871,1768500669773,-605.27,0.00036164,10]
[402057872,1768500669782,-587.72,0.00036164,10]
[402057873,1768500669791,-500.0,0.00036164,10]
[402057874,1768500669800,-500.0,0.00036164,10]
[402057875,1768500669809,-500.0,0.00036164,10]
[402057876,1768500669818,-794.12,0.00036164,10]
[402057877,1768500669827,-500.0,0.00036164,10]
[402057878,1768500669836,-990.95,0.00036164,10]